bitfinex/quotes_BTCUSD_20250408
["timestamp","ask_amount","ask_price","bid_price","bid_amount"]
[1744153574010,8.3e-07,76640.0,76639.0,0.14891569]
[1744153574160,8.3e-07,76640.0,76639.0,0.21175654]
[1744153574560,8.3e-07,76640.0,76639.0,0.19460664]
[1744153574758,8.3e-07,76640.0,76639.0,0.14330664]
[1744153574958,8.3e-07,76640.0,76639.0,0.017048]
[1744153575161,0.01304883,76640.0,76639.0,0.004]
[1744153575487,0.47930747,76640.0,76639.0,0.004]
[1744153576049,0.01305,76626.0,76619.0,0.013051]
[1744153576453,0.208809,76625.0,76620.0,0.221873]
[1744153576652,0.221859,76625.0,76619.0,0.013051]
[1744153576935,0.013051,76618.0,76612.0,0.013052]
[1744153577189,0.208845,76612.0,76607.0,0.013053]
[1744153577388,0.013053,76609.0,76604.0,0.221919]
[1744153577871,0.013053,76609.0,76601.0,0.221927]
[1744153577872,0.013053,76606.0,76601.0,0.221927]
[1744153578049,0.208858,76607.0,76603.0,0.208869]
[1744153578251,0.208858,76607.0,76599.0,0.013055]
[1744153578252,0.20895163,76605.0,76599.0,0.013055]
[1744153578469,0.221911,76607.0,76600.0,0.221931]
[1744153578670,0.013053,76608.0,76602.0,0.221924]
[1744153578880,5.246e-05,76606.0,76604.0,0.013054]
[1744153579079,0.00012079,76607.0,76604.0,0.22192]
[1744153579251,0.34,76608.0,76607.0,0.013053]
[1744153579869,0.013051,76622.0,76616.0,0.208831]
[1744153580097,0.013051,76622.0,76617.0,0.013051]
[1744153580272,0.013052,76616.0,76607.0,0.002]
[1744153580616,0.353052,76616.0,76610.0,0.221903]
[1744153581193,0.34,76614.0,76610.0,0.221903]
[1744153582135,0.208845,76612.0,76606.0,0.221913]
[1744153582357,0.208877,76600.0,76596.0,0.208885]
[1744153582530,0.208877,76600.0,76586.0,0.1722]
[1744153582531,0.34,76610.0,76601.0,0.013054]
[1744153582828,0.34,76610.0,76607.0,0.013053]
[1744153583055,0.34,76610.0,76608.0,0.221906]
[1744153583182,0.34,76610.0,76609.0,0.013053]
[1744153584237,0.54885,76610.0,76608.0,0.001]
[1744153584377,0.56240177,76609.0,76608.0,0.001]
[1744153585592,0.353053,76608.0,76602.0,0.013054]
[1744153585847,0.00029176,76607.0,76604.0,0.013054]
[1744153586327,0.00029176,76607.0,76604.0,0.221918]
[1744153586754,0.00029176,76607.0,76603.0,0.013054]
[1744153586928,0.00029176,76607.0,76604.0,0.001]
[1744153587335,0.00029176,76607.0,76604.0,0.209865]
[1744153587536,0.00083902,76607.0,76604.0,0.001]
[1744153588126,0.00066796,76606.0,76604.0,0.001]
[1744153588598,0.354053,76609.0,76604.0,0.001]
[1744153588787,0.00066796,76605.0,76604.0,0.001]
[1744153588991,0.562908,76609.0,76604.0,0.001]
[1744153589299,0.561908,76609.0,76603.0,0.22192]
[1744153589560,0.00066796,76608.0,76607.0,0.013053]
[1744153590027,0.34,76617.0,76612.0,0.221894]
[1744153590304,0.00063345,76616.0,76612.0,0.221894]
[1744153590562,0.00063345,76616.0,76615.0,0.013052]
[1744153590804,0.00034276,76616.0,76615.0,0.013052]
[1744153591072,0.04289022,76618.0,76611.0,0.013052]
[1744153591272,0.20883,76617.0,76612.0,0.221894]
[1744153591501,0.00030859,76617.0,76615.0,0.221885]
[1744153591745,0.00030859,76617.0,76615.0,0.015052]
[1744153592103,0.00044524,76617.0,76615.0,0.015052]
[1744153592298,0.00144524,76617.0,76616.0,0.221885]
[1744153592506,0.00044524,76617.0,76616.0,0.221885]
[1744153593131,0.00044524,76617.0,76615.0,0.017052]
[1744153593285,0.00144524,76617.0,76615.0,0.004]
[1744153593744,0.00044524,76617.0,76614.0,0.221889]
[1744153593885,0.00044524,76617.0,76615.0,0.208834]
[1744153594087,0.00044524,76617.0,76616.0,0.016052]
[1744153594507,0.00044524,76617.0,76616.0,0.013052]
[1744153595160,0.00044524,76617.0,76616.0,0.017052]
[1744153595397,0.00030845,76617.0,76616.0,0.017052]
[1744153596504,0.00030845,76617.0,76616.0,0.020052]
[1744153596915,0.34,76627.0,76626.0,0.01305]
[1744153597089,0.34,76627.0,76626.0,0.221856]
[1744153597225,0.34,76627.0,76621.0,0.013051]
[1744153597226,0.013046,76649.0,76616.0,0.007]
[1744153597436,0.208721,76658.0,76652.0,0.208735]
[1744153597693,0.16688333,76657.0,76649.0,0.013046]
[1744153597850,0.34,76655.0,76650.0,0.208741]
[1744153598048,0.013045,76654.0,76644.0,0.208756]
[1744153598256,0.41230008,76654.0,76648.0,0.22179]
[1744153598597,0.34,76653.0,76648.0,0.22179]
[1744153598953,0.34,76653.0,76650.0,0.20874]
[1744153599384,0.34,76653.0,76652.0,0.22178]
[1744153599385,0.02410765,76653.0,76652.0,0.22178]
[1744153599582,0.0001259,76658.0,76657.0,0.221766]
[1744153601304,0.0021259,76658.0,76657.0,0.221766]
[1744153602008,0.0031259,76658.0,76657.0,0.221766]
[1744153602446,0.0031259,76658.0,76652.0,0.013045]
[1744153602650,0.0031259,76658.0,76656.0,0.221768]
[1744153602843,0.0031259,76658.0,76657.0,0.013045]
[1744153603353,0.0001259,76658.0,76657.0,0.013045]
[1744153603763,0.0001259,76658.0,76657.0,0.01565382]
[1744153603911,0.0001259,76658.0,76657.0,0.013045]
[1744153604456,0.0021259,76658.0,76657.0,0.013045]
[1744153605402,0.0031259,76658.0,76657.0,0.013045]
[1744153605647,0.0001259,76658.0,76657.0,0.013045]
[1744153605850,0.0011259,76658.0,76657.0,0.013045]
[1744153608373,0.0011259,76658.0,76657.0,0.13930364]
[1744153608572,0.0011259,76658.0,76657.0,0.18751202]
[1744153609123,9e-07,76658.0,76657.0,0.26447665]
[1744153609372,0.172,76689.0,76683.0,0.01304]
[1744153609748,0.34,76688.0,76686.0,0.01304]
[1744153610001,0.36437546,76688.0,76686.0,0.01304]
[1744153610161,0.36437546,76688.0,76684.0,0.208648]
[1744153610362,0.36437546,76688.0,76685.0,0.221683]
[1744153611171,0.36437546,76688.0,76683.0,0.01304]
[1744153611554,0.36437546,76688.0,76683.0,0.221688]
[1744153611961,0.01304,76687.0,76682.0,0.221693]
[1744153612287,0.36437546,76688.0,76683.0,0.221689]
[1744153612487,0.36437546,76688.0,76684.0,0.221685]
[1744153612874,0.36637546,76688.0,76684.0,0.221685]
[1744153613768,0.36637546,76688.0,76686.0,0.208641]
[1744153613974,0.36637546,76688.0,76687.0,0.01304]
[1744153614173,0.36637546,76688.0,76685.0,0.221683]
[1744153614174,0.02637546,76688.0,76685.0,0.221683]
[1744153614383,0.02637546,76688.0,76687.0,0.01304]
[1744153614585,0.02637546,76688.0,76687.0,0.22428785]
[1744153614586,0.02537546,76688.0,76687.0,0.22428785]
[1744153614831,0.001,76688.0,76687.0,0.34793864]
[1744153615177,0.00012583,76694.0,76693.0,0.221661]
[1744153615392,0.00012583,76694.0,76693.0,0.22426849]
[1744153615627,0.00012583,76694.0,76693.0,0.35052713]
[1744153615834,0.00012583,76694.0,76691.0,0.208626]
[1744153616037,0.00012583,76694.0,76692.0,0.208624]
[1744153616240,0.00012583,76694.0,76692.0,0.221663]
[1744153616418,0.00012583,76694.0,76693.0,0.013038]
[1744153616824,0.00012583,76694.0,76693.0,0.017038]
[1744153617328,0.00012583,76694.0,76693.0,0.013038]
[1744153617707,0.00012583,76694.0,76693.0,0.019038]
[1744153617914,0.00012583,76694.0,76693.0,0.015038]
[1744153618247,0.00012583,76694.0,76693.0,0.018038]
[1744153620584,0.00012583,76694.0,76693.0,0.14429664]
[1744153620924,0.00012583,76694.0,76693.0,0.14690404]
[1744153621123,0.00012583,76694.0,76693.0,0.14429664]
[1744153621984,0.00012583,76694.0,76693.0,0.14690385]
[1744153622291,0.00012583,76694.0,76693.0,0.14129664]
[1744153622482,0.00012583,76694.0,76693.0,0.14829664]
[1744153622683,0.00012583,76694.0,76693.0,0.14890379]
[1744153623085,0.00012583,76694.0,76693.0,0.14190379]
[1744153623262,0.00012583,76694.0,76693.0,0.13929664]
[1744153623585,0.00012583,76694.0,76693.0,0.14590379]
[1744153623735,0.00012583,76694.0,76693.0,0.14329664]
[1744153623931,0.00012583,76694.0,76693.0,0.13929664]
[1744153624131,0.00112583,76694.0,76693.0,0.14629664]
[1744153624505,0.00112583,76694.0,76693.0,0.014]
[1744153624635,0.00112583,76694.0,76693.0,0.027038]
[1744153625295,0.00112583,76694.0,76693.0,0.020038]
[1744153625470,0.00012583,76694.0,76693.0,0.013038]
[1744153625669,0.00012583,76694.0,76693.0,0.014038]
[1744153626075,0.00112583,76694.0,76693.0,0.215623]
[1744153626294,0.00112583,76694.0,76693.0,0.228661]
[1744153626655,0.00012583,76694.0,76693.0,0.222661]
[1744153627310,0.01316383,76694.0,76693.0,0.001]
[1744153627670,0.00012583,76694.0,76693.0,0.001]
[1744153630183,0.54874683,76694.0,76693.0,0.001]
[1744153630372,0.68804347,76694.0,76693.0,0.001]
[1744153631375,0.73774347,76694.0,76693.0,0.001]
[1744153631987,0.68804347,76694.0,76693.0,0.001]
[1744153632406,0.69004347,76694.0,76693.0,0.001]
[1744153632853,0.34212583,76694.0,76693.0,0.001]
[1744153633209,0.34,76693.0,76692.0,0.221663]
[1744153634175,0.00012583,76694.0,76693.0,0.013038]
[1744153636407,0.00012583,76694.0,76693.0,0.017038]
[1744153638161,0.00012583,76694.0,76693.0,0.004]
[1744153638762,0.56178483,76694.0,76693.0,0.004]
[1744153640674,0.56178483,76694.0,76693.0,0.002]
[1744153640879,0.81429892,76694.0,76693.0,0.002]
[1744153641012,0.81629892,76694.0,76693.0,0.002]
[1744153641211,0.85690638,76694.0,76693.0,0.002]
[1744153641421,0.013045,76657.0,76648.0,0.013046]
[1744153641653,0.208748,76648.0,76639.0,0.059148]
[1744153641808,0.208755,76645.0,76639.0,0.013048]
[1744153642014,0.208745,76649.0,76637.0,0.221821]
[1744153642251,0.208761,76643.0,76637.0,0.208774]
[1744153642565,0.208758,76644.0,76636.0,0.013048]
[1744153642766,0.54877,76639.0,76638.0,0.11709981]
[1744153643869,0.54877,76639.0,76638.0,0.12409981]
[1744153644115,0.54877,76639.0,76638.0,0.11709981]
[1744153644312,0.34,76639.0,76638.0,0.11709981]
[1744153644854,0.354048,76639.0,76638.0,0.0071259]
[1744153645207,0.341,76639.0,76638.0,0.0071259]
[1744153645379,0.341,76639.0,76638.0,0.0141259]
[1744153647323,0.341,76639.0,76638.0,0.2359469]
[1744153651381,0.354048,76639.0,76638.0,0.0141259]
[1744153651800,0.353048,76639.0,76638.0,0.0071259]
[1744153652166,0.354048,76639.0,76638.0,0.0061259]
[1744153652374,0.72709084,76639.0,76638.0,0.0061259]
[1744153652578,0.85971664,76639.0,76638.0,0.0071259]
[1744153652779,0.85971664,76639.0,76638.0,0.0001259]
[1744153652976,0.85971664,76639.0,76638.0,0.0021259]
[1744153653185,0.85971664,76639.0,76638.0,0.0051259]
[1744153653391,0.221887,76616.0,76609.0,0.221904]
[1744153653584,0.34,76620.0,76613.0,0.208841]
[1744153653764,0.013054,76603.0,76597.0,0.013055]
[1744153653966,0.208908,76589.0,76583.0,0.221977]
[1744153654147,0.208908,76589.0,76580.0,0.221987]
[1744153654148,0.22197,76587.0,76580.0,0.221987]
[1744153654352,0.013057,76586.0,76575.0,0.013059]
[1744153654604,0.013057,76582.0,76576.0,0.013058]
[1744153654880,0.013057,76585.0,76583.0,0.00041911]
[1744153655049,0.221977,76584.0,76583.0,0.00041911]
[1744153655320,0.34,76585.0,76583.0,0.00041911]
[1744153655540,0.001,76586.0,76583.0,0.01347611]
[1744153655805,0.001,76586.0,76584.0,0.20892]
[1744153656023,0.34,76589.0,76588.0,0.013056]
[1744153656355,0.3394,76589.0,76588.0,0.013056]
[1744153656554,0.17172,76601.0,76596.0,0.013055]
[1744153656756,0.17172,76601.0,76598.0,0.221937]
[1744153657002,0.013054,76603.0,76598.0,0.221937]
[1744153657302,0.17172,76606.0,76602.0,0.013054]
[1744153657661,0.17172,76606.0,76602.0,0.221925]
[1744153658080,0.17172,76606.0,76604.0,0.208866]
[1744153658446,0.34,76605.0,76604.0,0.22192]
[1744153659415,0.002,76606.0,76605.0,0.013053]
[1744153659943,0.002,76606.0,76584.0,0.313378]
[1744153659944,0.002,76606.0,76596.0,0.221942]
[1744153660074,0.015053,76606.0,76604.0,0.004]
[1744153660620,0.34,76600.0,76593.0,0.208895]
[1744153661119,0.34,76600.0,76590.0,0.013056]
[1744153661343,0.208885,76597.0,76591.0,0.221955]
[1744153661477,0.208888,76596.0,76588.0,0.221966]
[1744153661820,0.208888,76596.0,76593.0,0.005]
[1744153662219,0.013056,76591.0,76581.0,0.221986]
[1744153662518,0.013056,76590.0,76581.0,0.221986]
[1744153662720,0.208916,76586.0,76578.0,0.013058]
[1744153662956,0.013056,76591.0,76584.0,0.013057]
[1744153662957,0.353056,76591.0,76584.0,0.013057]
[1744153663156,0.353056,76591.0,76583.0,0.22239911]
[1744153663692,0.001,76590.0,76588.0,0.221964]
[1744153663898,0.001,76590.0,76585.0,0.221972]
[1744153664104,0.001,76590.0,76587.0,0.208912]
[1744153664333,0.001,76590.0,76588.0,0.013056]
[1744153664750,0.002,76590.0,76588.0,0.013056]
[1744153664974,0.002,76590.0,76588.0,0.221963]
[1744153666167,0.003,76590.0,76588.0,0.221963]
[1744153668187,0.00128433,76589.0,76588.0,0.221963]
[1744153669376,0.002,76590.0,76589.0,0.013056]
[1744153669863,0.00118166,76590.0,76589.0,0.013056]
[1744153670078,0.34,76596.0,76590.0,0.22196]
[1744153670237,0.00125003,76595.0,76590.0,0.22196]
[1744153670696,0.00125003,76595.0,76589.0,0.013056]
[1744153670697,0.20892,76585.0,76578.0,0.208935]
[1744153670897,0.00111339,76584.0,76577.0,0.208939]
[1744153671097,0.34111339,76584.0,76570.0,0.208957]
[1744153671300,0.48042903,76584.0,76561.0,0.208981]
[1744153671501,0.48042903,76584.0,76560.0,0.208984]
[1744153671742,0.48140473,76584.0,76562.0,0.20898]
[1744153671980,0.60766018,76584.0,76561.0,0.208981]
[1744153672220,0.60766018,76584.0,76583.0,0.00341911]
[1744153672422,0.60766018,76584.0,76562.0,0.222039]
[1744153672423,0.013059,76572.0,76562.0,0.222039]
[1744153672621,0.013059,76572.0,76562.0,0.22216442]
[1744153672856,0.013059,76575.0,76562.0,0.22216442]
[1744153672857,0.0015762,76571.0,76570.0,0.013059]
[1744153673190,0.34,76575.0,76572.0,0.22201]
[1744153673381,0.34,76575.0,76573.0,0.208948]
[1744153673585,0.34,76575.0,76574.0,0.013059]
[1744153673902,0.34,76580.0,76575.0,0.222004]
[1744153674527,0.34,76580.0,76576.0,0.221998]
[1744153674840,0.34,76581.0,76577.0,0.013058]
[1744153675046,0.34,76581.0,76578.0,0.013058]
[1744153675248,0.34,76581.0,76577.0,0.221995]
[1744153675748,0.34,76581.0,76579.0,0.208934]
[1744153676065,0.34,76582.0,76576.0,0.221999]
[1744153676191,0.221989,76581.0,76574.0,0.013059]
[1744153676398,0.548928,76582.0,76575.0,0.222004]
[1744153676812,0.34,76582.0,76579.0,0.208934]
[1744153677055,0.34,76582.0,76577.0,0.221997]
[1744153677250,0.001,76582.0,76577.0,0.221997]
[1744153677660,0.56198,76584.0,76577.0,0.221997]
[1744153678030,0.002,76582.0,76577.0,0.221997]
[1744153678274,0.001,76581.0,76580.0,0.221989]
[1744153678426,0.002,76582.0,76580.0,0.221989]
[1744153679255,0.341,76584.0,76580.0,0.221989]
[1744153679472,0.342,76584.0,76580.0,0.013058]
[1744153679999,0.34,76584.0,76580.0,0.013058]
[1744153680357,0.342,76582.0,76578.0,0.208934]
[1744153680560,0.34,76577.0,76572.0,0.013059]
[1744153680768,0.548942,76577.0,76572.0,0.22201]
[1744153681091,0.34,76577.0,76575.0,0.208944]
[1744153681293,0.34,76577.0,76576.0,0.013058]
[1744153681435,0.34,76577.0,76573.0,0.208949]
[1744153681800,0.34,76580.0,76575.0,0.222004]
[1744153682012,0.34,76580.0,76576.0,0.013058]
[1744153682290,0.34,76580.0,76576.0,0.221998]
[1744153682650,0.34,76580.0,76576.0,0.222998]
[1744153682887,0.34,76581.0,76576.0,0.221998]
[1744153683076,0.34,76578.0,76573.0,0.208949]
[1744153683278,0.00143884,76577.0,76576.0,0.001]
[1744153683475,0.09565142,76577.0,76576.0,0.001]
[1744153683678,0.12632704,76577.0,76576.0,0.001]
[1744153683853,0.13938504,76577.0,76576.0,0.001]
[1744153684691,0.13986439,76577.0,76576.0,0.001]
[1744153684890,0.00054775,76577.0,76576.0,0.001]
[1744153685067,0.013058,76579.0,76573.0,0.015059]
[1744153685284,0.00023965,76578.0,76573.0,0.0400725]
[1744153685610,0.001,76577.0,76574.0,0.013059]
[1744153685927,0.00027385,76576.0,76574.0,0.013059]
[1744153686203,0.00027385,76576.0,76575.0,0.208945]
[1744153686428,0.00027385,76576.0,76573.0,0.2470215]
[1744153686710,0.013059,76574.0,76569.0,0.222021]
[1744153686912,0.222015,76572.0,76569.0,0.0235081]
[1744153687084,0.208935,76579.0,76571.0,0.222014]
[1744153687289,0.00027397,76576.0,76573.0,0.013059]
[1744153687515,0.221997,76578.0,76573.0,0.013059]
[1744153687711,0.22223965,76577.0,76572.0,0.208951]
[1744153687855,0.22223965,76577.0,76573.0,0.001]
[1744153688057,0.22223965,76577.0,76573.0,0.0471155]
[1744153688278,0.01306,76569.0,76563.0,0.222039]
[1744153688607,0.208959,76570.0,76563.0,0.013061]
[1744153688812,0.222018,76570.0,76569.0,0.002]
[1744153689040,0.34827664,76570.0,76569.0,0.002]
[1744153689258,0.34853355,76570.0,76569.0,0.002]
[1744153689469,0.52021355,76570.0,76569.0,0.002]
[1744153689647,0.222039,76563.0,76562.0,0.00012542]
[1744153689986,0.22212495,76563.0,76562.0,0.00012542]
[1744153690215,0.0002571,76563.0,76562.0,0.00012542]
[1744153690414,0.02456341,76563.0,76562.0,0.03540336]
[1744153690613,0.02430631,76563.0,76562.0,0.03540336]
[1744153690812,0.02430631,76563.0,76562.0,0.00012542]
[1744153691018,0.0002571,76563.0,76562.0,0.01318642]
[1744153691196,0.01306,76569.0,76562.0,0.01318642]
[1744153691415,0.208967,76567.0,76562.0,0.00012542]
[1744153691763,0.34829064,76566.0,76562.0,0.00412542]
[1744153691955,0.013061,76563.0,76562.0,0.00412542]
[1744153692152,0.03737371,76563.0,76562.0,0.00012542]
[1744153692450,0.03763081,76563.0,76562.0,0.00812542]
[1744153692674,0.03763081,76563.0,76562.0,0.00412542]
[1744153693040,0.0133181,76563.0,76562.0,0.00412542]
[1744153693239,0.0002571,76563.0,76562.0,0.06331556]
[1744153693442,0.01306,76565.0,76562.0,0.05025456]
[1744153693634,0.0002913,76564.0,76562.0,0.00412542]
[1744153694036,0.0002913,76564.0,76562.0,0.00812542]
[1744153694228,0.02428645,76563.0,76562.0,0.00812542]
[1744153694489,0.02454355,76563.0,76562.0,0.00812542]
[1744153694868,0.02454355,76563.0,76562.0,0.00412542]
[1744153695552,0.02478324,76563.0,76562.0,0.05286556]
[1744153695752,0.02478324,76563.0,76562.0,0.05686556]
[1744153695988,0.02478324,76563.0,76562.0,0.05286556]
[1744153696288,0.00049679,76563.0,76562.0,0.05686556]
[1744153696490,0.222027,76567.0,76562.0,0.05686556]
[1744153696789,0.000531,76566.0,76563.0,0.208978]
[1744153697222,0.340531,76566.0,76562.0,0.02118642]
[1744153697395,0.34,76566.0,76562.0,0.02118642]
[1744153697576,0.000531,76565.0,76563.0,0.208978]
[1744153697777,0.000531,76565.0,76563.0,0.212978]
[1744153698324,0.000531,76565.0,76563.0,0.208978]
[1744153698480,0.01306,76566.0,76562.0,0.00812542]
[1744153698814,0.000531,76565.0,76562.0,0.00412542]
[1744153699015,0.000531,76565.0,76563.0,0.004]
[1744153699217,0.34,76564.0,76563.0,0.004]
[1744153699439,0.34,76564.0,76563.0,0.008]
[1744153699726,0.34049676,76564.0,76563.0,0.004]
[1744153700022,0.34049676,76564.0,76563.0,0.08408764]
[1744153700228,0.00049676,76564.0,76563.0,0.08008764]
[1744153700576,0.34,76569.0,76566.0,0.01306]
[1744153700787,0.34,76569.0,76567.0,0.01306]
[1744153701205,0.34,76569.0,76567.0,0.222027]
[1744153701422,0.53372883,76570.0,76569.0,0.222021]
[1744153701774,0.36204883,76570.0,76569.0,0.222021]
[1744153702872,0.36204883,76570.0,76568.0,0.222022]
[1744153703079,0.36204883,76570.0,76569.0,0.01306]
[1744153703643,0.36204883,76570.0,76569.0,0.01406]
[1744153704491,0.36204883,76570.0,76569.0,0.001]
[1744153704856,0.71032547,76570.0,76569.0,0.002]
[1744153707172,0.75086714,76570.0,76569.0,0.002]
[1744153707572,0.71032547,76570.0,76569.0,0.002]
[1744153708158,0.75086826,76570.0,76569.0,0.002]
[1744153708358,0.71032547,76570.0,76569.0,0.002]
[1744153709561,0.36204883,76570.0,76569.0,0.002]
[1744153709773,0.54786647,76570.0,76569.0,0.002]
[1744153709969,0.58839908,76570.0,76569.0,0.002]
[1744153710271,0.54786647,76570.0,76569.0,0.002]
[1744153710472,0.50136647,76570.0,76569.0,0.002]
[1744153710881,0.50136647,76570.0,76569.0,0.001]
[1744153711083,0.01306,76568.0,76562.0,0.00012542]
[1744153711435,0.013061,76563.0,76562.0,0.00012542]
[1744153712311,0.47931964,76563.0,76562.0,0.00112542]
[1744153712439,0.47931964,76563.0,76544.0,8e-05]
[1744153712440,0.613767,76563.0,76544.0,8e-05]
[1744153712782,0.613767,76563.0,76524.0,0.00997428]
[1744153712783,0.34,76542.0,76534.0,0.013066]
[1744153713136,0.00090867,76541.0,76534.0,0.013066]
[1744153713346,0.00090867,76541.0,76540.0,0.222106]
[1744153714080,0.00090867,76541.0,76540.0,0.013065]
[1744153714292,0.209035,76542.0,76538.0,0.013065]
[1744153714616,0.00094278,76541.0,76538.0,0.222109]
[1744153714959,0.54903,76544.0,76538.0,0.222109]
[1744153715315,0.00101131,76543.0,76538.0,0.222109]
[1744153715761,0.209037,76542.0,76537.0,0.222111]
[1744153716144,0.00097708,76541.0,76538.0,0.222109]
[1744153716471,0.562094,76544.0,76538.0,0.222109]
[1744153716621,0.00094278,76540.0,76538.0,0.001]
[1744153716963,0.209068,76531.0,76522.0,0.209089]
[1744153717140,0.209068,76531.0,76524.0,0.222149]
[1744153717310,0.013066,76530.0,76522.0,0.222157]
[1744153717512,0.013066,76530.0,76520.0,0.209095]
[1744153717747,0.013066,76530.0,76521.0,0.20909]
[1744153717947,0.013066,76530.0,76521.0,0.222158]
[1744153718147,0.353066,76530.0,76518.0,0.222168]
[1744153718351,0.353066,76530.0,76520.0,0.222163]
[1744153718532,0.353066,76530.0,76522.0,0.013068]
[1744153719087,0.353066,76530.0,76518.0,0.222168]
[1744153719088,0.353066,76530.0,76516.0,0.209105]
[1744153719209,0.67299298,76530.0,76515.0,0.209107]
[1744153719430,0.67299298,76530.0,76517.0,0.209103]
[1744153719634,0.67299298,76530.0,76529.0,0.00112602]
[1744153719834,0.78697995,76530.0,76529.0,0.00112602]
[1744153720148,0.78697995,76530.0,76529.0,0.00212602]
[1744153720349,0.67299298,76530.0,76529.0,0.00012602]
[1744153720587,0.53366834,76530.0,76529.0,0.00012602]
[1744153720791,0.53366834,76530.0,76529.0,0.01419202]
[1744153720934,0.53366834,76530.0,76529.0,0.22226302]
[1744153721131,0.02210834,76530.0,76529.0,0.22226302]
[1744153721338,0.008,76530.0,76529.0,0.22326302]
[1744153721773,0.34,76538.0,76537.0,0.209049]
[1744153721981,0.34,76538.0,76535.0,0.209054]
[1744153722199,0.34,76538.0,76534.0,0.222123]
[1744153722793,0.004,76538.0,76535.0,0.222117]
[1744153722972,0.004,76538.0,76534.0,0.222123]
[1744153723142,0.013066,76534.0,76529.0,0.00012602]
[1744153723345,0.562134,76530.0,76529.0,0.00012602]
[1744153723655,0.68839264,76530.0,76529.0,0.00112602]
[1744153723979,0.68839264,76530.0,76529.0,0.00012602]
[1744153724389,0.68839264,76530.0,76529.0,0.00112602]
[1744153724551,0.68839264,76530.0,76529.0,0.00012602]
[1744153725366,0.68839264,76530.0,76529.0,0.00112602]
[1744153726208,0.34,76530.0,76529.0,0.00112602]
[1744153726773,0.34,76530.0,76529.0,0.00012602]
[1744153726972,0.345,76530.0,76529.0,0.00012602]
[1744153727387,0.343,76530.0,76529.0,0.00012602]
[1744153727593,0.345,76530.0,76529.0,0.01319202]
[1744153728426,0.343,76530.0,76529.0,0.01319202]
[1744153728650,0.34,76530.0,76529.0,0.01319202]
[1744153729014,0.343,76530.0,76529.0,0.01319202]
[1744153729338,0.343,76530.0,76529.0,0.00012602]
[1744153729538,0.34,76530.0,76529.0,0.00012602]
[1744153729684,0.342,76530.0,76529.0,0.00012602]
[1744153729885,0.343,76530.0,76529.0,0.00012602]
[1744153730088,0.356066,76530.0,76529.0,0.00012602]
[1744153730693,0.343,76530.0,76529.0,0.00012602]
[1744153732099,0.565134,76530.0,76529.0,0.00012602]
[1744153732219,0.343,76530.0,76529.0,0.00012602]
[1744153732425,0.343,76530.0,76529.0,0.01319202]
[1744153732626,0.343,76530.0,76529.0,0.07984792]
[1744153733194,0.34,76530.0,76529.0,0.07984792]
[1744153733392,0.34,76530.0,76529.0,0.01319202]
[1744153733548,0.341,76530.0,76529.0,0.01319202]
[1744153734568,0.001,76530.0,76529.0,0.01319202]
[1744153734767,0.0196339,76538.0,76537.0,0.222114]
[1744153734971,0.34,76547.0,76546.0,0.222088]
[1744153735158,0.34,76547.0,76544.0,0.209027]
[1744153735360,0.34,76547.0,76545.0,0.222089]
[1744153736077,0.006,76547.0,76545.0,0.222089]
[1744153736261,0.006,76547.0,76546.0,0.013064]
[1744153736464,0.008,76547.0,76546.0,0.013064]
[1744153736717,0.34,76551.0,76547.0,0.209021]
[1744153737978,0.3600987,76551.0,76547.0,0.209021]
[1744153738396,0.3600987,76551.0,76546.0,0.013064]
[1744153738611,0.3600987,76551.0,76550.0,0.013063]
[1744153738920,0.3630987,76551.0,76550.0,0.013063]
[1744153739280,0.3600987,76551.0,76550.0,0.013063]
[1744153739491,0.3610987,76551.0,76550.0,0.013063]
[1744153740300,0.3630987,76551.0,76550.0,0.013063]
[1744153740506,0.0230987,76551.0,76550.0,0.013063]
[1744153740703,0.003,76551.0,76550.0,0.0156756]
[1744153740925,0.002,76551.0,76550.0,0.01567536]
[1744153741120,0.5,76577.0,76576.0,0.208942]
[1744153741324,0.20892,76584.0,76576.0,0.013058]
[1744153741526,0.013058,76581.0,76574.0,0.222004]
[1744153741852,0.013057,76583.0,76577.0,0.221996]
[1744153742313,0.208929,76581.0,76576.0,0.013058]
[1744153742520,0.34,76580.0,76576.0,0.013058]
[1744153742716,0.00066744,76579.0,76574.0,0.222004]
[1744153743089,0.00066744,76579.0,76577.0,0.221996]
[1744153743294,0.00066744,76579.0,76577.0,0.221997]
[1744153743457,0.00066744,76579.0,76575.0,0.222001]
[1744153743914,0.02043711,76579.0,76575.0,0.222001]
[1744153744116,0.00063323,76578.0,76577.0,0.221998]
[1744153744315,0.345,76581.0,76577.0,0.221998]
[1744153744521,0.005,76579.0,76577.0,0.221998]
[1744153744726,0.005,76579.0,76578.0,0.013058]
[1744153744918,0.00570164,76579.0,76576.0,0.20894]
[1744153745173,0.34570164,76579.0,76574.0,0.013059]
[1744153745352,0.34,76577.0,76573.0,0.222007]
[1744153745552,0.01875964,76579.0,76573.0,0.222007]
[1744153745553,0.00056483,76576.0,76574.0,0.013059]
[1744153745734,0.233994,76579.0,76574.0,0.013059]
[1744153745978,0.00059903,76578.0,76574.0,0.013059]
[1744153746377,0.00059903,76578.0,76574.0,0.222004]
[1744153746729,0.001,76576.0,76574.0,0.222004]
[1744153746928,0.001,76576.0,76575.0,0.045707]
[1744153747131,0.27170629,76580.0,76575.0,0.045707]
[1744153747132,0.25864829,76580.0,76575.0,0.25465]
[1744153747330,0.013057,76582.0,76575.0,0.25465]
[1744153747331,0.001,76578.0,76576.0,0.013058]
[1744153747506,6.841e-05,76577.0,76575.0,0.045707]
[1744153747715,0.02011747,76579.0,76576.0,0.0293829]
[1744153747881,6.841e-05,76578.0,76576.0,0.0293829]
[1744153748084,0.221986,76582.0,76576.0,0.0293829]
[1744153748286,0.002,76578.0,76576.0,0.0293829]